[Event "Polish University-ch Women 2024"]
[Site "Lublin"]
[Date "2024.02.23"]
[Round "2.5"]
[White "Michalak, Wiktoria"]
[Black "Kubicka, Anna"]
[Result "0-1"]
[ECO "A05"]
[WhiteElo "1522"]
[BlackElo "2278"]
[Annotator "TA"]
[PlyCount "50"]
[EventDate "2024.02.22"]
[EventType "swiss"]
[EventCountry "POL"]
[SourceTitle "playchess.com"]
[Source "ChessBase"]
[SourceQuality "1"]
[TimeControl "600+3"]

{[%evp 9,50,-42,-38,-58,-46,-75,-80,-89,-92,-91,-93,-89,-99,-108,-80,-128,-129,-127,-120,-146,-154,-152,-157,-152,-152,-162,-160,-311,-306,-294,-222,-718,-717,-2266,-525,-892,-895,-884,-898,-856,-624,-654,-610]} 1. Nf3 {[%emt 0:00:02]} Nf6 {[%emt 0:00:02]} 2. b3 {[%emt 0:00:03]} g6 {[%emt 0:00:05]} 3. Bb2 {[%emt 0:00:01]} Bg7 {[%emt 0:00:01]} 4. d3 {[%emt 0:00:10]} O-O {[%emt 0:00:03]} 5. e4 {[%emt 0:00:01]} d5 {[%emt 0:00:17]} 6. e5 {[%emt 0:00:18]} Nfd7 {[%emt 0:00:08]} 7. Be2 {[%emt 0:00:28]} c5 {[%emt 0:00:08] Black converts the advantage convincingly.} 8. d4 {[%emt 0:01:38] Black is better.} cxd4 {[%emt 0:00:26]} 9. Qxd4 {[%emt 0:00:11]} e6 {[%emt 0:00:07]} 10. Qf4 {[%emt 0:00:25]} Nc6 {[%emt 0:00:28]} 11. c4 {[%emt 0:01:12]} dxc4 {[%emt 0:00:23][%cal Od7e5] And now ...Ndxe5! would win.} 12. Bxc4 {[%emt 0:00:10] [#]} (12. O-O $142) 12... Ndxe5 $1 $17 {[%emt 0:00:32][%mdl 512]} 13. Nxe5 {[%emt 0:00:36]} Nxe5 {[%emt 0:00:04]} 14. Bc3 {[%emt 0:01:26]} Nd3+ {[%emt 0:02:41]} 15. Bxd3 {[%emt 0:00:03]} Qxd3 {[%emt 0:00:24]} 16. Bxg7 {[%emt 0:00:10]} Kxg7 {[%emt 0:00:02]} 17. Nd2 {[%emt 0:00:04]} b6 {[%emt 0:00:51] Active counter play!} 18. Ne4 $2 {[%emt 0:00:39]} (18. Qe5+ $17 f6 19. Qc7+ Rf7 20. Qc4 Qxc4 21. Nxc4) 18... Ba6 $19 {[%emt 0:00:45]} 19. Qe3 {[%emt 0:00:52] Dodges Qe2+. White is weak on the light squares} Rfd8 $40 {[%emt 0:01:18][%mdl 128] [#] ...Qb5 is the strong threat. Black goes for the king.} 20. Rc1 $2 {[%emt 0:00:19]} (20. Qxd3 Bxd3 21. f3) 20... Rac8 {[%emt 0:00:24] ( -> ...Rxc1+). Black is clearly winning.} 21. Ra1 {[%emt 0:01:09]} Qxe3+ {[%emt 0:00:39]} (21... Qc2 $142 22. f3 Qb2 (22... Qxg2 $2 23. Nf2 $19)) 22. fxe3 {[%emt 0:00:01]} Rc2 {[%emt 0:00:01]} 23. Ng3 {[%emt 0:00:13] Prevents Re2+.} Rxg2 {[%emt 0:00:08]} 24. Rd1 {[%emt 0:00:22]} Rxd1+ {[%emt 0:00:02]} 25. Kxd1 {[%emt 0:00:02]} Rxa2 {[%emt 0:00:01] Weighted Error Value: White=1.04/Black=0.44.  Mistake:       	White=3     	---        Inaccurate:     	White=2     	---        OK:         	White=4     	Black=8      Best:        	White=1     	Black=2} 0-1

[Event "Polish University-ch Women 2024"]
[Site "Lublin"]
[Date "2024.02.23"]
[Round "2.6"]
[White "Kucharska, Honorata"]
[Black "Polak, Sylwia"]
[Result "1-0"]
[ECO "C00"]
[WhiteElo "2137"]
[BlackElo "1565"]
[Annotator "NA RC"]
[PlyCount "71"]
[EventDate "2024.02.22"]
[EventType "swiss"]
[EventCountry "POL"]
[SourceTitle "playchess.com"]
[Source "ChessBase"]
[SourceQuality "1"]
[TimeControl "600+3"]

1. e4 {[%emt 0:00:01]} e6 {[%emt 0:00:01]} 2. d3 {[%emt 0:00:08]} d5 {[%emt 0:00:05]} 3. Nd2 {[%emt 0:00:01]} Nc6 {[%emt 0:00:12]} 4. Ngf3 {[%emt 0:00:09]} Nf6 {[%emt 0:00:04]} 5. g3 {[%emt 0:00:09]} dxe4 {[%emt 0:00:14]} 6. dxe4 {[%emt 0:00:05]} Bc5 {[%emt 0:00:26]} 7. h3 {[%emt 0:00:51]} e5 {[%emt 0:00:20]} 8. Bg2 {[%emt 0:00:16]} O-O {[%emt 0:00:07]} 9. O-O {[%emt 0:00:06]} a5 {[%emt 0:00:02]} 10. Qe2 {[%emt 0:00:44]} Qe7 {[%emt 0:00:41]} 11. c3 {[%emt 0:00:18]} a4 {[%emt 0:00:58]} 12. Nh4 {[%emt 0:01:03]} g6 {[%emt 0:00:14]} 13. Nc4 {[%emt 0:00:13]} b6 {[%emt 0:00:19]} 14. Bh6 {[%emt 0:01:22]} Re8 {[%emt 0:00:12]} 15. b4 {[%emt 0:00:38]} axb3 {[%emt 0:00:19]} 16. axb3 {[%emt 0:00:02]} Ba6 {[%emt 0:00:56]} 17. Bg5 {[%emt 0:00:14]} Qe6 {[%emt 0:00:09]} 18. Bxf6 {[%emt 0:00:41]} Qxf6 {[%emt 0:00:11]} 19. b4 {[%emt 0:00:22]} Bf8 {[%emt 0:02:36]} 20. Rxa6 {[%emt 0:00:12]} Rxa6 {[%emt 0:00:01]} 21. b5 {[%emt 0:00:01]} Ra4 {[%emt 0:00:46]} 22. bxc6 {[%emt 0:00:14]} Qxc6 {[%emt 0:00:02]} 23. Ne3 {[%emt 0:00:02]} Qxc3 {[%emt 0:00:24]} 24. Qb5 {[%emt 0:00:51]} Rea8 {[%emt 0:00:28]} 25. Nd5 {[%emt 0:00:05]} Qc2 {[%emt 0:00:27]} 26. Nf6+ {[%emt 0:00:34]} Kh8 {[%emt 0:00:08]} 27. Qxe5 {[%emt 0:00:26]} Bg7 {[%emt 0:00:01]} 28. Qf4 {[%emt 0:00:15]} Ra1 {[%emt 0:00:41]} 29. e5 {[%emt 0:00:31]} Rxf1+ {[%emt 0:00:06]} 30. Bxf1 {[%emt 0:00:02]} Ra4 {[%emt 0:00:16]} 31. Qe3 {[%emt 0:00:15]} Ra2 {[%emt 0:00:04]} 32. Qd4 {[%emt 0:00:09]} Ra8 {[%emt 0:00:05]} 33. Nf3 {[%emt 0:00:09]} Qc6 {[%emt 0:00:01]} 34. Ng5 {[%emt 0:00:04]} Rf8 {[%emt 0:00:02]} 35. Ngxh7 {[%emt 0:00:07]} Ra8 {[%emt 0:00:01]} 36. Qh4 {[%emt 0:00:04]} 1-0

[Event "Polish University-ch Women 2024"]
[Site "Lublin"]
[Date "2024.02.23"]
[Round "2.7"]
[White "Lascar, Radoslawa"]
[Black "Jarocka, Liwia"]
[Result "0-1"]
[ECO "A35"]
[WhiteElo "1804"]
[BlackElo "2199"]
[Annotator "RC"]
[PlyCount "55"]
[EventDate "2024.02.22"]
[EventType "swiss"]
[EventCountry "POL"]
[SourceTitle "playchess.com"]
[Source "ChessBase"]
[SourceQuality "1"]
[TimeControl "600+3"]

1. e4 {[%emt 0:00:02]} c6 {[%emt 0:00:01]} 2. c4 {[%emt 0:00:03]} d5 {[%emt 0:00:02]} 3. exd5 {[%emt 0:00:02]} cxd5 {[%emt 0:00:01]} 4. cxd5 {[%emt 0:00:03]} Nf6 {[%emt 0:00:01]} 5. d4 {[%emt 0:00:13]} g6 {[%emt 0:00:07]} 6. Nf3 {[%emt 0:00:23]} Bg7 {[%emt 0:00:01]} 7. Nc3 {[%emt 0:00:30]} O-O {[%emt 0:00:23]} 8. Be2 {[%emt 0:01:16]} Nxd5 {[%emt 0:00:02]} 9. O-O {[%emt 0:00:18]} Nc6 {[%emt 0:00:01]} 10. Be3 {[%emt 0:01:17]} b6 {[%emt 0:01:23]} 11. Qc1 {[%emt 0:00:47]} Nxe3 {[%emt 0:00:12]} 12. fxe3 {[%emt 0:00:17]} Bb7 {[%emt 0:00:09]} 13. Rd1 {[%emt 0:00:26]} Rc8 {[%emt 0:00:27]} 14. Qd2 {[%emt 0:00:42]} e6 {[%emt 0:00:35]} 15. e4 {[%emt 0:00:54]} Na5 {[%emt 0:00:22]} 16. b3 {[%emt 0:00:25]} Qe7 {[%emt 0:00:07]} 17. Rac1 {[%emt 0:00:12]} Rfd8 {[%emt 0:00:05]} 18. Qe3 {[%emt 0:01:05]} Qf8 {[%emt 0:00:10]} 19. g4 {[%emt 0:00:54]} Qe7 {[%emt 0:01:57]} 20. Nb5 {[%emt 0:00:39]} a6 {[%emt 0:01:10]} 21. Nc3 {[%emt 0:00:01]} Nc6 {[%emt 0:00:33]} 22. Na4 {[%emt 0:00:20]} Nxd4 {[%emt 0:00:41]} 23. Rxc8 {[%emt 0:00:12]} Nxe2+ {[%emt 0:00:45]} 24. Qxe2 {[%emt 0:00:01]} Bxc8 {[%emt 0:00:03]} 25. Kf1 {[%emt 0:00:11]} b5 {[%emt 0:00:05]} 26. Nc3 {[%emt 0:00:03]} Bxc3 {[%emt 0:00:03]} 27. Rxd8+ {[%emt 0:00:04]} Qxd8 {[%emt 0:00:01]} 28. Qc2 {[%emt 0:00:07]} 0-1

[Event "Polish University-ch Women 2024"]
[Site "Lublin"]
[Date "2024.02.23"]
[Round "2.8"]
[White "Jankowska, Julia"]
[Black "Cieslak, Wiktoria"]
[Result "0-1"]
[ECO "E16"]
[WhiteElo "1767"]
[BlackElo "1868"]
[Annotator "NA"]
[PlyCount "68"]
[EventDate "2024.02.22"]
[EventType "swiss"]
[EventCountry "POL"]
[SourceTitle "playchess.com"]
[Source "ChessBase"]
[SourceQuality "1"]
[TimeControl "600+3"]

1. d4 {[%emt 0:00:03]} Nf6 {[%emt 0:00:01]} 2. c4 {[%emt 0:00:02]} e6 {[%emt 0:00:01]} 3. Nf3 {[%emt 0:00:04]} b6 {[%emt 0:00:02]} 4. g3 {[%emt 0:00:04]} Bb7 {[%emt 0:00:02]} 5. Bg2 {[%emt 0:00:03]} Bb4+ {[%emt 0:00:02]} 6. Nbd2 {[%emt 0:00:23]} O-O {[%emt 0:00:04]} 7. O-O {[%emt 0:00:04]} Bxd2 {[%emt 0:00:07]} 8. Bxd2 {[%emt 0:00:11]} c5 {[%emt 0:00:02]} 9. b3 {[%emt 0:00:45]} d6 {[%emt 0:00:56]} 10. Bc3 {[%emt 0:00:19]} Qe7 {[%emt 0:00:09]} 11. Re1 {[%emt 0:01:42]} Nbd7 {[%emt 0:00:07]} 12. Qc1 {[%emt 0:00:15]} Rfe8 {[%emt 0:00:58]} 13. Rd1 {[%emt 0:01:57]} Rac8 {[%emt 0:01:40]} 14. Bb2 {[%emt 0:00:49]} h6 {[%emt 0:01:53]} 15. dxc5 {[%emt 0:01:11]} Nxc5 {[%emt 0:01:23]} 16. Bxf6 {[%emt 0:01:01]} Qxf6 {[%emt 0:00:12]} 17. Rxd6 {[%emt 0:00:23]} Red8 {[%emt 0:00:02]} 18. Rxd8+ {[%emt 0:00:05]} Rxd8 {[%emt 0:00:01]} 19. Qe1 {[%emt 0:00:10]} Rd7 {[%emt 0:00:28]} 20. Rd1 {[%emt 0:00:37]} Qb2 {[%emt 0:00:47]} 21. Rxd7 {[%emt 0:00:10]} Nxd7 {[%emt 0:00:01]} 22. Qd2 {[%emt 0:00:13]} Qb1+ {[%emt 0:00:05]} 23. Bf1 {[%emt 0:00:14]} Nf6 {[%emt 0:00:41]} 24. Qd8+ {[%emt 0:00:05]} Kh7 {[%emt 0:00:01]} 25. Qd3+ {[%emt 0:00:03]} Be4 {[%emt 0:00:10]} 26. Qxb1 {[%emt 0:00:02]} Bxb1 {[%emt 0:00:02]} 27. a3 {[%emt 0:00:07]} Ba2 {[%emt 0:00:01]} 28. b4 {[%emt 0:00:07]} Bxc4 {[%emt 0:00:03]} 29. Ne5 {[%emt 0:00:01]} Bb5 {[%emt 0:00:14]} 30. Nxf7 {[%emt 0:00:03]} Ne4 {[%emt 0:00:08]} 31. Nd8 {[%emt 0:00:10]} Bc4 {[%emt 0:00:14]} 32. Nc6 {[%emt 0:00:06]} a6 {[%emt 0:00:04]} 33. Nd4 {[%emt 0:00:03]} Nd2 {[%emt 0:00:09]} 34. e3 {[%emt 0:00:06]} Nxf1 {[%emt 0:00:02]} 0-1

[Event "Polish University-ch Women 2024"]
[Site "Lublin"]
[Date "2024.02.23"]
[Round "2.9"]
[White "Harazinska, Magdalena"]
[Black "Hampel, Anna"]
[Result "1-0"]
[ECO "D36"]
[WhiteElo "1950"]
[BlackElo "1697"]
[Annotator "NA"]
[PlyCount "89"]
[EventDate "2024.02.22"]
[EventType "swiss"]
[EventCountry "POL"]
[SourceTitle "playchess.com"]
[Source "ChessBase"]
[SourceQuality "1"]
[TimeControl "600+3"]

1. d4 {[%emt 0:00:03]} Nf6 {[%emt 0:00:02]} 2. c4 {[%emt 0:00:01]} d5 {[%emt 0:00:04]} 3. Nc3 {[%emt 0:00:05]} e6 {[%emt 0:00:01]} 4. cxd5 {[%emt 0:00:05]} exd5 {[%emt 0:00:02]} 5. Bg5 {[%emt 0:00:02]} c6 {[%emt 0:00:02]} 6. Qc2 {[%emt 0:00:02]} Be7 {[%emt 0:00:03]} 7. e3 {[%emt 0:00:01]} Nbd7 {[%emt 0:00:02]} 8. Bd3 {[%emt 0:00:07]} O-O {[%emt 0:00:06]} 9. Nge2 {[%emt 0:00:02]} h6 {[%emt 0:00:02]} 10. Bh4 {[%emt 0:00:02]} Re8 {[%emt 0:00:33]} 11. f3 {[%emt 0:00:12]} b5 {[%emt 0:00:10]} 12. O-O {[%emt 0:00:21]} Bb7 {[%emt 0:00:29]} 13. a3 {[%emt 0:00:36]} a5 {[%emt 0:00:02]} 14. Bf2 {[%emt 0:00:46]} Rc8 {[%emt 0:00:23]} 15. Qd2 {[%emt 0:00:39]} b4 {[%emt 0:00:14]} 16. axb4 {[%emt 0:00:04]} axb4 {[%emt 0:00:01]} 17. Na4 {[%emt 0:00:01]} c5 {[%emt 0:00:07]} 18. dxc5 {[%emt 0:00:35]} Nxc5 {[%emt 0:00:06]} 19. Nxc5 {[%emt 0:00:07]} Bxc5 {[%emt 0:00:03]} 20. Nd4 {[%emt 0:00:09]} Qb6 {[%emt 0:00:46]} 21. Rfc1 {[%emt 0:00:41]} Nd7 {[%emt 0:00:41]} 22. Bf5 {[%emt 0:00:57]} Rc7 {[%emt 0:00:39]} 23. Bxd7 {[%emt 0:00:06]} Rxd7 {[%emt 0:00:01]} 24. b3 {[%emt 0:00:43]} Rde7 {[%emt 0:01:22]} 25. Re1 {[%emt 0:00:28]} Ba6 {[%emt 0:01:01]} 26. Nc2 {[%emt 0:00:57]} Qc6 {[%emt 0:01:12]} 27. Nxb4 {[%emt 0:00:18]} Bxb4 {[%emt 0:00:20]} 28. Qxb4 {[%emt 0:00:01]} Rb7 {[%emt 0:00:25]} 29. Qa3 {[%emt 0:00:15]} Bd3 {[%emt 0:00:16]} 30. Rac1 {[%emt 0:00:13]} Qb5 {[%emt 0:00:26]} 31. Rc3 {[%emt 0:00:11]} Bg6 {[%emt 0:00:28]} 32. Rec1 {[%emt 0:00:11]} Qe2 {[%emt 0:00:35]} 33. h3 {[%emt 0:00:25]} Bh5 {[%emt 0:00:24]} 34. Qa4 {[%emt 0:00:18]} Re6 {[%emt 0:00:24]} 35. Qa8+ {[%emt 0:00:04]} Kh7 {[%emt 0:00:01]} 36. Qxb7 {[%emt 0:00:18]} Bxf3 {[%emt 0:00:02]} 37. R3c2 {[%emt 0:00:16]} Qd3 {[%emt 0:00:11]} 38. gxf3 {[%emt 0:00:08]} Rg6+ {[%emt 0:00:02]} 39. Kh2 {[%emt 0:00:04]} Qf5 {[%emt 0:00:02]} 40. f4 {[%emt 0:00:33]} Qe4 {[%emt 0:00:01]} 41. Bg1 {[%emt 0:00:04]} Qf3 {[%emt 0:00:06]} 42. Qxf7 {[%emt 0:00:11]} Rg3 {[%emt 0:00:05]} 43. Qf5+ {[%emt 0:00:02]} Rg6 {[%emt 0:00:05]} 44. b4 {[%emt 0:00:08]} d4 {[%emt 0:00:04]} 45. exd4 {[%emt 0:00:02]} 1-0

[Event "Polish University-ch Women 2024"]
[Site "Lublin"]
[Date "2024.02.23"]
[Round "2.10"]
[White "Sloniewska, Alicja"]
[Black "Parol, Pola"]
[Result "1-0"]
[ECO "E46"]
[WhiteElo "1685"]
[BlackElo "2030"]
[Annotator "NA"]
[PlyCount "75"]
[EventDate "2024.02.22"]
[EventType "swiss"]
[EventCountry "POL"]
[SourceTitle "playchess.com"]
[Source "ChessBase"]
[SourceQuality "1"]
[TimeControl "600+3"]

1. d4 {[%emt 0:00:02]} Nf6 {[%emt 0:00:01]} 2. c4 {[%emt 0:00:02]} e6 {[%emt 0:00:01]} 3. Nc3 {[%emt 0:00:03]} Bb4 {[%emt 0:00:02]} 4. e3 {[%emt 0:00:03]} O-O {[%emt 0:00:08]} 5. Nge2 {[%emt 0:00:02]} d5 {[%emt 0:00:07]} 6. a3 {[%emt 0:00:05]} Be7 {[%emt 0:00:07]} 7. Nf4 {[%emt 0:00:17]} c5 {[%emt 0:00:24]} 8. dxc5 {[%emt 0:00:37]} Bxc5 {[%emt 0:00:05]} 9. cxd5 {[%emt 0:00:12]} exd5 {[%emt 0:00:59]} 10. Nfxd5 {[%emt 0:00:21]} Nxd5 {[%emt 0:00:28]} 11. Qxd5 {[%emt 0:00:55]} Qa5 {[%emt 0:00:10]} 12. Bd3 {[%emt 0:01:41]} Nd7 {[%emt 0:00:40]} 13. O-O {[%emt 0:00:42]} Nf6 {[%emt 0:00:02]} 14. Qf3 {[%emt 0:00:16]} Qc7 {[%emt 0:00:58]} 15. e4 {[%emt 0:01:20]} Bg4 {[%emt 0:00:35]} 16. Qg3 {[%emt 0:00:40]} Bd6 {[%emt 0:01:15]} 17. f4 {[%emt 0:00:34]} Bc5+ {[%emt 0:00:09]} 18. Kh1 {[%emt 0:00:02]} Bd7 {[%emt 0:04:46]} 19. h3 {[%emt 0:00:43]} Bc6 {[%emt 0:00:00]} 20. Qh4 {[%emt 0:00:35]} Be7 {[%emt 0:00:00]} 21. Qg3 {[%emt 0:00:27]} Rfd8 {[%emt 0:00:00]} 22. Bc2 {[%emt 0:00:02]} Bc5 {[%emt 0:00:00]} 23. e5 {[%emt 0:00:18]} Nd5 {[%emt 0:00:00]} 24. Nxd5 {[%emt 0:00:12]} Bxd5 {[%emt 0:00:00]} 25. Qh4 {[%emt 0:00:04]} g6 {[%emt 0:00:00]} 26. Bd1 {[%emt 0:00:31]} Bc4 {[%emt 0:00:00]} 27. Re1 {[%emt 0:00:06]} Qb6 {[%emt 0:00:00]} 28. f5 {[%emt 0:00:24]} Rd4 {[%emt 0:00:00]} 29. Qh6 {[%emt 0:00:05]} Bf8 {[%emt 0:00:00]} 30. Qg5 {[%emt 0:00:02]} Rad8 {[%emt 0:00:04]} 31. fxg6 {[%emt 0:00:03]} Qxg6 {[%emt 0:00:09]} 32. Bf3 {[%emt 0:00:06]} Qxg5 {[%emt 0:00:17]} 33. Bxg5 {[%emt 0:00:02]} Rb8 {[%emt 0:00:05]} 34. Rad1 {[%emt 0:00:01]} Rxd1 {[%emt 0:00:05]} 35. Rxd1 {[%emt 0:00:01]} Be6 {[%emt 0:00:02]} 36. Be4 {[%emt 0:00:09]} Bc5 {[%emt 0:00:05]} 37. Rd3 {[%emt 0:00:05]} Kg7 {[%emt 0:00:10]} 38. Bf6+ 1-0

[Event "Polish University-ch Women 2024"]
[Site "Lublin"]
[Date "2024.02.23"]
[Round "3.1"]
[White "Sliwicka, Alicja"]
[Black "Trybowska, Barbara"]
[Result "1-0"]
[ECO "B01"]
[WhiteElo "2309"]
[BlackElo "1859"]
[Annotator "RC"]
[PlyCount "71"]
[EventDate "2024.02.22"]
[EventType "swiss"]
[EventCountry "POL"]
[SourceTitle "playchess.com"]
[Source "ChessBase"]
[SourceQuality "1"]
[TimeControl "600+3"]

1. e4 {[%emt 0:00:02]} d5 {[%emt 0:00:01]} 2. exd5 {[%emt 0:00:03]} Nf6 {[%emt 0:00:02]} 3. Bb5+ {[%emt 0:00:04]} Nbd7 {[%emt 0:00:04]} 4. c4 {[%emt 0:00:23]} a6 {[%emt 0:00:01]} 5. Ba4 {[%emt 0:00:01]} b5 {[%emt 0:00:02]} 6. cxb5 {[%emt 0:00:23]} Bb7 {[%emt 0:01:14]} 7. Nc3 {[%emt 0:00:33]} Nxd5 {[%emt 0:00:58]} 8. Nf3 {[%emt 0:00:08]} axb5 {[%emt 0:01:29]} 9. Bxb5 {[%emt 0:00:08]} c6 {[%emt 0:00:08]} 10. Be2 {[%emt 0:01:27]} e6 {[%emt 0:00:18]} 11. Nxd5 {[%emt 0:00:15]} cxd5 {[%emt 0:00:19]} 12. O-O {[%emt 0:00:04]} Bd6 {[%emt 0:00:05]} 13. d4 {[%emt 0:00:22]} h6 {[%emt 0:00:31]} 14. Bd3 {[%emt 0:00:38]} O-O {[%emt 0:00:48]} 15. Qe2 {[%emt 0:00:04]} Qb6 {[%emt 0:00:26]} 16. Be3 {[%emt 0:00:21]} f5 {[%emt 0:00:41]} 17. Bd2 {[%emt 0:01:31]} Rae8 {[%emt 0:00:16]} 18. Bc3 {[%emt 0:00:21]} g5 {[%emt 0:00:26]} 19. a4 {[%emt 0:00:09]} g4 {[%emt 0:00:08]} 20. Ne5 {[%emt 0:00:29]} Bxe5 {[%emt 0:00:23]} 21. dxe5 {[%emt 0:00:03]} d4 {[%emt 0:00:05]} 22. Bd2 {[%emt 0:00:09]} Kh7 {[%emt 0:00:39]} 23. b4 {[%emt 0:00:08]} Qc6 {[%emt 0:00:43]} 24. f3 {[%emt 0:00:13]} gxf3 {[%emt 0:00:18]} 25. Rxf3 {[%emt 0:00:32]} Rg8 {[%emt 0:00:03]} 26. Raf1 {[%emt 0:00:16]} Qxa4 {[%emt 0:00:23]} 27. Rg3 {[%emt 0:00:27]} Rxg3 {[%emt 0:00:16]} 28. hxg3 {[%emt 0:00:02]} Qc6 {[%emt 0:00:02]} 29. Rf2 {[%emt 0:00:58]} Rg8 {[%emt 0:00:06]} 30. g4 {[%emt 0:00:07]} Qd5 {[%emt 0:00:15]} 31. gxf5 {[%emt 0:00:16]} Nxe5 {[%emt 0:00:04]} 32. fxe6+ {[%emt 0:00:26]} Kh8 {[%emt 0:00:02]} 33. e7 {[%emt 0:00:21]} Nf3+ {[%emt 0:00:07]} 34. Rxf3 {[%emt 0:00:10]} Qxf3 {[%emt 0:00:04]} 35. Qe5+ {[%emt 0:00:03]} Rg7 {[%emt 0:00:02]} 36. e8=Q+ {[%emt 0:00:02]} 1-0

[Event "Polish University-ch Women 2024"]
[Site "Lublin"]
[Date "2024.02.23"]
[Round "3.2"]
[White "Adamczyk, Zuzanna"]
[Black "Antolak, Julia"]
[Result "0-1"]
[ECO "B63"]
[WhiteElo "1970"]
[BlackElo "2309"]
[Annotator "TA"]
[PlyCount "44"]
[EventDate "2024.02.22"]
[EventType "swiss"]
[EventCountry "POL"]
[SourceTitle "playchess.com"]
[Source "ChessBase"]
[SourceQuality "1"]
[TimeControl "600+3"]

{[%evp 13,44,-8,25,-4,-7,0,-10,-14,0,-22,0,0,0,-45,-50,-54,-12,-48,-25,-25,-21,-17,-19,-50,-7,-18,-27,-52,-16,-53,-34,-399,-385]} 1. e4 {[%emt 0:00:03]} c5 {[%emt 0:00:02]} 2. Nf3 {[%emt 0:00:02]} e6 {[%emt 0:00:02]} 3. d4 {[%emt 0:00:02]} cxd4 {[%emt 0:00:01]} 4. Nxd4 {[%emt 0:00:02]} Nf6 {[%emt 0:00:01]} 5. Nc3 {[%emt 0:00:02]} d6 {[%emt 0:00:02]} 6. Bg5 {[%emt 0:00:31]} Be7 {[%emt 0:00:09]} 7. Qd2 {[%emt 0:01:17]} Nc6 {[%emt 0:00:18]} 8. Nxc6 {[%emt 0:01:32]} bxc6 {[%emt 0:00:02]} 9. O-O-O {[%emt 0:00:22]} Rb8 {[%emt 0:00:58]} 10. f3 {[%emt 0:01:09] The position is equal.} O-O {[%emt 0:02:28]} 11. Bc4 {[%emt 0:00:44]} d5 {[%emt 0:00:57]} 12. Bb3 {[%emt 0:00:47]} Bb7 {[%emt 0:00:38]} 13. exd5 {[%emt 0:00:32]} cxd5 {[%emt 0:00:05]} 14. h4 {[%emt 0:00:27]} Rc8 {[%emt 0:00:16]} 15. a3 {[%emt 0:00:13]} Nd7 {[%emt 0:00:41]} 16. Kb1 {[%emt 0:00:22]} Nc5 {[%emt 0:00:27]} 17. Ba2 {[%emt 0:00:02]} Re8 {[%emt 0:00:21]} 18. Ka1 {[%emt 0:00:08]} Qb6 {[%emt 0:00:08]} 19. Bxe7 {[%emt 0:00:38]} Rxe7 {[%emt 0:00:01]} 20. Rhe1 {[%emt 0:00:08][%cal Ra2d5]} Rb8 {[%emt 0:00:14]} 21. Rb1 {[%emt 0:00:25]} Rc7 {[%emt 0:00:22]} 22. Qe3 $2 {[%emt 0:00:07][%mdl 8192] [#]} ({White should play} 22. Ne2 $15) 22... d4 $1 {[%emt 0:00:12][%mdl 512] Weighted Error Value: White=0.50/Black=0.19 (very precise) .  Loses game:     	White=1     	---        Inaccurate:     	White=4     	Black=3      OK:         	White=6     	Black=3      Brilliant:      	---       	Black=1} 0-1

[Event "Polish University-ch Women 2024"]
[Site "Lublin"]
[Date "2024.02.23"]
[Round "3.3"]
[White "Czarnecka, Lidia"]
[Black "Skiba, Aleksandra"]
[Result "1-0"]
[ECO "B32"]
[WhiteElo "2034"]
[BlackElo "1931"]
[Annotator "NA RC"]
[PlyCount "83"]
[EventDate "2024.02.22"]
[EventType "swiss"]
[EventCountry "POL"]
[SourceTitle "playchess.com"]
[Source "ChessBase"]
[SourceQuality "1"]
[TimeControl "600+3"]

1. e4 {[%emt 0:00:01]} c5 {[%emt 0:00:01]} 2. Nf3 {[%emt 0:00:01]} Nc6 {[%emt 0:00:02]} 3. d4 {[%emt 0:00:01]} cxd4 {[%emt 0:00:02]} 4. Nxd4 {[%emt 0:00:02]} e5 {[%emt 0:00:01]} 5. Nb5 {[%emt 0:00:01]} d6 {[%emt 0:00:01]} 6. c4 {[%emt 0:00:16]} Be6 {[%emt 0:00:08]} 7. Be3 {[%emt 0:00:25]} Be7 {[%emt 0:00:43]} 8. N1c3 {[%emt 0:00:03]} a6 {[%emt 0:00:03]} 9. Na3 {[%emt 0:00:01]} Nf6 {[%emt 0:00:19]} 10. Be2 {[%emt 0:00:03]} O-O {[%emt 0:00:05]} 11. O-O {[%emt 0:00:02]} Rc8 {[%emt 0:00:11]} 12. f3 {[%emt 0:00:32]} Ne8 {[%emt 0:02:11]} 13. Qd2 {[%emt 0:00:19]} f5 {[%emt 0:00:31]} 14. exf5 {[%emt 0:00:26]} Bxf5 {[%emt 0:00:11]} 15. Rad1 {[%emt 0:00:23]} Bf6 {[%emt 0:00:56]} 16. Nd5 {[%emt 0:00:14]} Nd4 {[%emt 0:01:37]} 17. Nxf6+ {[%emt 0:00:53]} Qxf6 {[%emt 0:00:12]} 18. Bxd4 {[%emt 0:00:04]} exd4 {[%emt 0:00:03]} 19. Qxd4 {[%emt 0:00:01]} Qxd4+ {[%emt 0:00:20]} 20. Rxd4 {[%emt 0:00:01]} Rc5 {[%emt 0:00:19]} 21. Rfd1 {[%emt 0:00:30]} Be6 {[%emt 0:00:37]} 22. Nb1 {[%emt 0:00:43]} Rf6 {[%emt 0:01:30]} 23. Nc3 {[%emt 0:00:02]} Re5 {[%emt 0:00:37]} 24. Ne4 {[%emt 0:00:37]} Rf8 {[%emt 0:00:14]} 25. Bf1 {[%emt 0:00:05]} h6 {[%emt 0:00:07]} 26. Nxd6 {[%emt 0:00:08]} Nxd6 {[%emt 0:00:05]} 27. Rxd6 {[%emt 0:00:01]} Bf7 {[%emt 0:00:08]} 28. b3 {[%emt 0:00:19]} b5 {[%emt 0:00:03]} 29. cxb5 {[%emt 0:00:24]} axb5 {[%emt 0:00:02]} 30. Kf2 {[%emt 0:00:24]} Rc5 {[%emt 0:00:05]} 31. R1d2 {[%emt 0:00:06]} Be8 {[%emt 0:00:05]} 32. Bd3 {[%emt 0:00:22]} Bf7 {[%emt 0:00:05]} 33. Be4 {[%emt 0:00:04]} Be8 {[%emt 0:00:02]} 34. Rd8 {[%emt 0:00:40]} Bf7 {[%emt 0:00:04]} 35. Rxf8+ {[%emt 0:00:11]} Kxf8 {[%emt 0:00:01]} 36. Ke3 {[%emt 0:00:05]} Ke7 {[%emt 0:00:01]} 37. Kd4 {[%emt 0:00:02]} Rc7 {[%emt 0:00:03]} 38. Rc2 {[%emt 0:00:03]} Ra7 {[%emt 0:00:01]} 39. Kc5 {[%emt 0:00:09]} Be8 {[%emt 0:00:05]} 40. Kb6 {[%emt 0:00:02]} Rd7 {[%emt 0:00:06]} 41. Bc6 {[%emt 0:00:20]} Rd6 {[%emt 0:00:01]} 42. Re2+ {[%emt 0:00:01]} 1-0